bitfinex/quotes_SOLUSD_20230104
["timestamp","ask_amount","ask_price","bid_price","bid_amount"]
[1672847383873,20.0,13.316,13.303,224.7]
[1672847384088,58.10998415,13.316,13.302,373.9963]
[1672847384838,13.98778415,13.315,13.302,373.9963]
[1672847385885,44.1222,13.316,13.302,598.6963]
[1672847386930,44.1222,13.316,13.303,21.7811836]
[1672847387349,44.1222,13.316,13.298,122.06705565]
[1672847387570,132.93901,13.315,13.298,122.06705565]
[1672847387884,70.36778415,13.314,13.298,122.06705565]
[1672847388098,20.0,13.313,13.298,122.06705565]
[1672847388293,56.39,13.312,13.298,122.06705565]
[1672847388497,20.0,13.311,13.298,122.06705565]
[1672847388714,56.4,13.31,13.298,122.06705565]
[1672847389041,33.98778415,13.309,13.298,122.06705565]
[1672847389450,13.98778415,13.308,13.298,122.06705565]
[1672847389662,20.0,13.307,13.298,122.06705565]
[1672847390090,13.98778415,13.306,13.298,122.06705565]
[1672847390296,20.0,13.305,13.298,122.06705565]
[1672847390618,13.98778415,13.304,13.298,122.06705565]
[1672847394941,13.98778415,13.304,13.279,224.7]
[1672847395259,262.3709,13.303,13.279,385.0936]
[1672847395676,13.98778415,13.302,13.279,385.0936]
[1672847395871,20.0,13.301,13.279,385.0936]
[1672847396196,38.32998415,13.3,13.279,385.0936]
[1672847396409,38.32998415,13.3,13.279,160.3936]
[1672847396618,33.98778415,13.299,13.279,385.0936]
[1672847396936,13.98778415,13.298,13.279,385.0936]
[1672847397145,20.0,13.297,13.279,385.0936]
[1672847397465,124.90638415,13.296,13.279,385.0936]
[1672847397652,20.0,13.295,13.279,385.0936]
[1672847397864,33.98778415,13.295,13.279,272.2975]
[1672847398072,33.98778415,13.295,13.279,47.5975]
[1672847398073,13.98778415,13.294,13.279,47.5975]
[1672847398300,13.98778415,13.294,13.277,224.7]
[1672847399036,20.0,13.295,13.277,224.7]
[1672847400069,13.98778415,13.294,13.277,224.7]
[1672847400597,13.98778415,13.294,13.276,383.2834]
[1672847400804,13.98778415,13.294,13.277,20.0]
[1672847402277,20.0,13.295,13.277,20.0]
[1672847402482,33.98778415,13.295,13.277,20.0]
[1672847411435,33.98778415,13.295,13.264,123.86397721]
[1672847411646,56.47,13.294,13.266,128.72120188]
[1672847411855,20.0,13.293,13.266,128.72120188]
[1672847412071,56.47,13.292,13.266,128.72120188]
[1672847412386,20.0,13.291,13.27,124.75390705]
[1672847412603,106.39838415,13.291,13.272,123.68937143]
[1672847412804,181.21558415,13.29,13.272,123.68937143]
[1672847413014,20.0,13.289,13.272,123.68937143]
[1672847413232,24.4262,13.288,13.272,123.68937143]
[1672847413426,94.90398415,13.288,13.272,123.68937143]
[1672847413644,20.0,13.287,13.272,123.68937143]
[1672847413863,33.98778415,13.287,13.272,123.68937143]
[1672847414057,13.98778415,13.286,13.272,123.68937143]
[1672847414268,66.9016,13.285,13.272,123.68937143]
[1672847414899,13.98778415,13.284,13.272,123.68937143]
[1672847420188,13.98778415,13.284,13.274,121.97048285]
[1672847422910,66.9016,13.285,13.274,121.97048285]
[1672847423323,80.88938415,13.285,13.274,121.97048285]
[1672847424807,56.51,13.284,13.274,121.97048285]
[1672847425000,20.0,13.283,13.274,121.97048285]
[1672847425211,33.98778415,13.283,13.274,121.97048285]
[1672847425528,13.98778415,13.282,13.274,121.97048285]
[1672847425737,20.0,13.281,13.274,121.97048285]
[1672847425948,20.0,13.281,13.268,125.30120478]
[1672847426160,63.82548415,13.28,13.264,123.86397721]
[1672847426363,20.0,13.279,13.264,123.86397721]
[1672847426574,111.3256,13.278,13.264,348.56397721]
[1672847426902,20.0,13.277,13.264,348.56397721]
[1672847427113,44.717,13.277,13.264,348.56397721]
[1672847427325,44.717,13.277,13.263,127.35661622]
[1672847428271,13.98778415,13.276,13.262,121.09881528]
[1672847428460,43.31483405,13.275,13.262,121.09881528]
[1672847428676,43.31483405,13.275,13.263,224.7]
[1672847428882,57.3026182,13.275,13.264,123.86397721]
[1672847429724,57.3026182,13.275,13.263,127.35661622]
[1672847429934,57.3026182,13.275,13.265,122.66588539]
[1672847430573,57.3026182,13.275,13.263,127.35661622]
[1672847430774,57.3026182,13.275,13.263,352.05661622]
[1672847431419,43.31483405,13.275,13.263,352.05661622]
[1672847432044,18.94543405,13.275,13.263,352.05661622]
[1672847432264,111.3256,13.278,13.276,47.46116287]
[1672847432472,73.7972,13.293,13.276,47.46116287]
[1672847432688,76.47,13.292,13.276,47.46116287]
[1672847432878,90.461264,13.292,13.276,47.46116287]
[1672847433097,13.991264,13.291,13.276,47.46116287]
[1672847433303,76.48,13.29,13.276,47.46116287]
[1672847433513,99.5849,13.29,13.276,47.46116287]
[1672847433737,13.991264,13.289,13.276,47.46116287]
[1672847433945,76.49,13.288,13.276,47.46116287]
[1672847434156,20.0,13.288,13.276,47.46116287]
[1672847434365,13.991264,13.287,13.276,47.46116287]
[1672847434585,20.0,13.286,13.276,47.46116287]
[1672847434990,13.991264,13.285,13.276,47.46116287]
[1672847435198,20.0,13.284,13.276,47.46116287]
[1672847435737,13.991264,13.283,13.276,47.46116287]
[1672847436461,20.0,13.284,13.276,47.46116287]
[1672847436672,20.0,13.286,13.276,47.46116287]
[1672847439203,33.991264,13.286,13.276,47.46116287]
[1672847439625,20.0,13.286,13.276,47.46116287]
[1672847442028,14.59983399,13.285,13.276,47.46116287]
[1672847442243,20.0,13.284,13.276,47.46116287]
[1672847442671,14.59983399,13.283,13.276,47.46116287]
[1672847443722,20.0,13.284,13.276,47.46116287]
[1672847444046,20.0,13.286,13.276,47.46116287]
[1672847444259,20.0,13.286,13.276,272.16116287]
[1672847444445,704.48276056,13.329,13.277,21.7811836]
[1672847444657,109.4421,13.302,13.278,224.7]
[1672847444884,14.59983399,13.292,13.28,224.7]
[1672847445198,69.7345,13.301,13.281,22.5535]
[1672847445520,14.59983399,13.3,13.281,22.5535]
[1672847447812,20.0,13.299,13.281,22.5535]
[1672847448347,38.96273399,13.298,13.281,22.5535]
[1672847448558,76.45,13.297,13.282,23.3812]
[1672847448771,91.04983399,13.297,13.276,47.46116287]
[1672847448981,148.19593399,13.296,13.276,47.46116287]
[1672847449173,100.8229,13.295,13.276,47.46116287]
[1672847449391,115.42273399,13.295,13.276,47.46116287]
[1672847449608,14.59983399,13.294,13.276,47.46116287]
[1672847449814,76.47,13.293,13.276,47.46116287]
[1672847450032,24.8741,13.292,13.276,47.46116287]
[1672847450232,76.48,13.291,13.276,47.46116287]
[1672847450439,132.5585,13.29,13.276,272.16116287]
[1672847450649,20.0,13.289,13.276,272.16116287]
[1672847450869,44.8741,13.289,13.276,272.16116287]
[1672847451077,233.09205727,13.317,13.277,20.0]
[1672847451289,109.7368,13.306,13.278,17.0]
[1672847451608,109.7368,13.306,13.279,244.7]
[1672847451797,109.7368,13.306,13.28,17.0]
[1672847452010,109.7368,13.306,13.281,244.7]
[1672847452221,109.7368,13.306,13.282,17.0]
[1672847452433,109.7368,13.306,13.283,20.0]
[1672847453074,20.0,13.305,13.282,20.0]
[1672847453274,20.0,13.305,13.281,20.0]
[1672847453485,20.0,13.305,13.283,224.7]
[1672847453695,20.0,13.305,13.284,20.0]
[1672847453917,20.0,13.305,13.285,224.7]
[1672847454120,20.0,13.305,13.286,20.0]
[1672847455906,20.0,13.305,13.287,21.7811836]
[1672847456647,20.0,13.305,13.288,17.0]
[1672847457060,20.0,13.305,13.289,21.7811836]
[1672847458008,20.0,13.305,13.29,17.0]
[1672847458216,56.38,13.315,13.291,20.0]
[1672847458542,20.0,13.314,13.292,241.7]
[1672847458861,20.0,13.314,13.293,21.7811836]
[1672847459074,20.0,13.315,13.294,20.0]
[1672847459281,20.0,13.315,13.295,17.0]
[1672847459594,24.6526,13.316,13.296,244.7]
[1672847459812,24.6526,13.316,13.297,17.0]
[1672847460016,24.6526,13.316,13.298,224.7]
[1672847460233,24.6526,13.316,13.299,17.0]
[1672847460550,56.31,13.331,13.3,244.7]
[1672847460856,56.31,13.331,13.301,17.0]
[1672847461063,56.31,13.331,13.302,244.7]
[1672847461382,13.81791168,13.33,13.302,266.4811836]
[1672847461595,76.32,13.329,13.303,41.7811836]
[1672847461804,76.32,13.329,13.308,263.7]
[1672847462010,36.73051168,13.328,13.308,263.7]
[1672847462332,70.14791168,13.327,13.308,263.7]
[1672847462539,20.0,13.326,13.301,263.7]
[1672847462751,20.0,13.326,13.3,48.4142]
[1672847462752,56.33,13.325,13.3,48.4142]
[1672847462953,151.2816,13.324,13.3,70.1953836]
[1672847463160,56.34,13.323,13.3,70.1953836]
[1672847463486,20.0,13.322,13.3,48.4142]
[1672847463698,56.35,13.321,13.3,48.4142]
[1672847463888,20.0,13.32,13.3,48.4142]
[1672847464098,56.36,13.319,13.3,48.4142]
[1672847464310,20.0,13.318,13.3,70.1953836]
[1672847464550,113.2948,13.317,13.3,46.1977836]
[1672847465059,20.0,13.316,13.3,21.7811836]
[1672847466421,20.0,13.316,13.295,383.3883]
[1672847466631,20.0,13.316,13.296,37.0]
[1672847467270,20.0,13.316,13.296,20.0]
[1672847467881,67.9508,13.316,13.296,20.0]
[1672847469050,67.9508,13.316,13.297,17.0]
[1672847469462,47.9508,13.316,13.299,224.7]
[1672847469783,47.9508,13.316,13.3,37.0]
[1672847470524,56.33,13.325,13.3,37.0]
[1672847470714,116.9299,13.326,13.301,224.7]
[1672847471048,20.0,13.325,13.303,224.7]
[1672847471266,20.0,13.325,13.304,37.0]
[1672847471658,76.33,13.325,13.304,37.0]
[1672847472104,20.0,13.325,13.304,37.0]
[1672847476506,20.0,13.325,13.304,20.0]
[1672847477887,20.0,13.325,13.302,623.9]
[1672847477888,56.34,13.324,13.303,20.0]
[1672847478078,76.33,13.325,13.303,20.0]
[1672847478718,76.33,13.325,13.302,399.2]
[1672847479550,76.33,13.325,13.304,263.7]
[1672847480290,76.33,13.325,13.304,488.4]
[1672847483971,20.0,13.325,13.305,20.0]
[1672847484177,20.0,13.325,13.306,17.0]
[1672847484410,20.0,13.325,13.307,20.0]
[1672847486077,20.0,13.325,13.305,20.0]
[1672847486290,20.0,13.325,13.306,17.0]
[1672847486506,20.0,13.325,13.307,20.0]
[1672847486701,20.0,13.325,13.308,17.0]
[1672847486911,20.0,13.325,13.307,20.0]
[1672847487130,20.0,13.325,13.305,20.0]
[1672847487352,20.0,13.325,13.306,17.0]
[1672847487668,20.0,13.325,13.307,20.0]
[1672847488091,20.0,13.325,13.305,20.0]
[1672847488276,20.0,13.325,13.306,17.0]
[1672847488492,20.0,13.325,13.307,20.0]
[1672847489974,20.0,13.325,13.308,17.0]
[1672847490171,20.0,13.325,13.307,20.0]
[1672847490605,20.0,13.325,13.305,20.0]
[1672847490803,24.5401,13.324,13.305,20.0]
[1672847492803,20.0,13.323,13.304,288.0141]
[1672847493017,56.35,13.322,13.304,288.0141]
[1672847493325,20.0,13.321,13.304,263.7]
[1672847493547,68.9066,13.321,13.304,488.4]
[1672847496163,68.4066,13.321,13.304,488.4]
[1672847500260,108.9018,13.32,13.304,488.4]
[1672847500469,20.0,13.319,13.304,488.4]
[1672847503223,108.9018,13.32,13.305,20.0]
[1672847504044,108.9018,13.32,13.306,17.0]
[1672847504254,108.9018,13.32,13.307,20.0]
[1672847505956,108.9018,13.32,13.308,224.7]
[1672847511290,108.9018,13.32,13.308,21.7811836]
[1672847516547,108.9018,13.32,13.309,17.0]
[1672847516972,108.9018,13.32,13.31,21.7811836]
[1672847522219,108.9018,13.32,13.311,17.0]
[1672847522661,108.9018,13.32,13.312,224.7]
[1672847524970,108.9018,13.32,13.311,17.0]
[1672847525279,80.6505,13.327,13.311,17.0]
[1672847525489,312.0,13.451,13.313,224.7]
[1672847525490,56.29,13.335,13.313,224.7]
[1672847525696,56.28,13.337,13.314,37.0]
[1672847525913,20.0,13.336,13.319,224.7]
[1672847526122,56.29,13.335,13.319,224.7]
[1672847526656,56.29,13.336,13.319,224.7]
[1672847527276,13.81791168,13.335,13.319,224.7]
[1672847527590,56.3,13.334,13.319,272.0142]
[1672847528210,56.3,13.334,13.319,47.3142]
[1672847528449,13.81791168,13.335,13.319,47.3142]
[1672847528643,56.3,13.334,13.319,47.3142]
[1672847529050,70.11791168,13.334,13.319,47.3142]
[1672847529269,20.0,13.333,13.319,47.3142]
[1672847529598,70.11791168,13.332,13.311,224.7]
[1672847529801,20.0,13.331,13.311,224.7]
[1672847530011,56.31,13.33,13.311,224.7]
[1672847530215,20.0,13.329,13.311,224.7]
[1672847530542,56.32,13.328,13.311,224.7]
[1672847530737,20.0,13.327,13.31,380.5891]
[1672847530949,182.841,13.327,13.31,380.5891]
[1672847531691,182.841,13.327,13.31,605.2891]
[1672847533188,182.841,13.327,13.31,380.5891]
[1672847535604,182.841,13.327,13.31,605.2891]
[1672847535919,182.841,13.327,13.31,402.3702836]
[1672847536231,182.841,13.327,13.311,224.7]
[1672847536631,182.841,13.327,13.311,21.7811836]
[1672847536846,182.841,13.327,13.31,380.5891]
[1672847537058,182.841,13.327,13.31,627.0702836]
[1672847538954,162.841,13.327,13.31,627.0702836]
[1672847539162,56.27,13.34,13.311,37.0]
[1672847539369,182.7959,13.335,13.312,623.9]
[1672847539579,182.7959,13.335,13.313,37.0]
[1672847539790,162.7959,13.335,13.313,58.7811836]
[1672847540017,162.7959,13.335,13.314,224.7]
[1672847540210,162.7959,13.335,13.317,224.7]
[1672847540534,56.24,13.348,13.319,224.7]
[1672847540746,186.4314,13.347,13.325,263.7]
[1672847540955,186.4314,13.347,13.326,181.7817]
[1672847541467,186.4314,13.347,13.326,203.5628836]
[1672847541468,13.81791168,13.346,13.326,203.5628836]
[1672847541678,13.81791168,13.346,13.326,181.7817]
[1672847541679,55.75,13.345,13.326,181.7817]
[1672847541906,23.4568,13.344,13.325,263.7]
[1672847542228,76.26,13.343,13.325,263.7]
[1672847542423,90.07791168,13.343,13.325,263.7]
[1672847542638,36.87961168,13.342,13.325,263.7]
[1672847542852,56.27,13.341,13.325,263.7]
[1672847543038,151.5641,13.34,13.325,263.7]
[1672847543252,56.28,13.339,13.325,263.7]
[1672847543496,20.0,13.338,13.325,263.7]
[1672847543699,56.28,13.337,13.325,263.7]
[1672847543884,20.0,13.336,13.325,263.7]
[1672847544640,20.0,13.338,13.325,263.7]
[1672847545367,33.81791168,13.338,13.325,263.7]
[1672847545575,56.28,13.337,13.325,263.7]
[1672847545799,20.0,13.336,13.325,263.7]
[1672847545992,56.29,13.335,13.325,263.7]
[1672847546201,20.0,13.336,13.325,263.7]
[1672847546534,20.0,13.338,13.325,263.7]
[1672847546845,56.28,13.337,13.325,263.7]
[1672847547057,20.0,13.336,13.325,263.7]
[1672847547488,13.81791168,13.335,13.325,263.7]
[1672847547797,20.0,13.336,13.325,263.7]
[1672847548010,13.81791168,13.337,13.325,263.7]
[1672847548328,13.74256765,13.335,13.311,56.39]
[1672847548533,255.37821,13.334,13.31,56.4]
[1672847548747,275.37821,13.334,13.309,127.50136274]
[1672847548946,13.74256765,13.333,13.309,127.50136274]
[1672847549159,76.3,13.332,13.309,127.50136274]
[1672847549572,13.74256765,13.331,13.31,56.4]
[1672847549783,20.0,13.33,13.31,56.4]
[1672847550316,24.1262,13.329,13.31,81.1912]
[1672847550639,20.0,13.328,13.31,81.1912]
[1672847550946,153.9173,13.328,13.31,81.1912]
[1672847552823,153.9173,13.328,13.311,224.7]
[1672847553034,153.9173,13.328,13.312,56.39]
[1672847553670,167.65986765,13.328,13.312,56.39]
[1672847553882,167.65986765,13.328,13.311,56.39]
[1672847555252,167.65986765,13.328,13.31,24.7912]
[1672847555458,167.65986765,13.328,13.311,56.39]
[1672847559779,167.65986765,13.328,13.31,24.7912]
[1672847559980,167.65986765,13.328,13.311,56.39]
[1672847560192,167.65986765,13.328,13.31,24.7912]
[1672847560526,223.97986765,13.328,13.31,24.7912]
[1672847565025,223.97986765,13.328,13.301,56.44]
[1672847565240,223.97986765,13.328,13.294,224.7]
[1672847565241,260.52514765,13.328,13.302,111.3311]
[1672847565451,22.6642,13.327,13.302,111.3311]
[1672847565659,76.33,13.326,13.302,111.3311]
[1672847565880,22.5691,13.325,13.302,111.3311]
[1672847566090,76.34,13.324,13.302,111.3311]
[1672847566406,24.0509,13.323,13.302,111.3311]
[1672847566608,76.35,13.322,13.302,111.3311]
[1672847566818,230.31026765,13.322,13.302,111.3311]
[1672847567022,13.74256765,13.321,13.302,111.3311]
[1672847567232,76.36,13.32,13.302,111.3311]
[1672847567665,90.10256765,13.32,13.302,111.3311]
[1672847567862,24.1591,13.319,13.302,111.3311]
[1672847568069,20.0,13.318,13.302,111.3311]
[1672847568280,23.4033,13.317,13.302,111.3311]
[1672847568598,33.74256765,13.316,13.302,111.3311]
[1672847568802,172.16846765,13.316,13.302,111.3311]
[1672847569019,158.4259,13.316,13.302,111.3311]
[1672847569774,172.16846765,13.316,13.302,111.3311]
[1672847571125,158.4259,13.316,13.302,111.3311]
[1672847572605,13.66721153,13.315,13.302,111.3311]
[1672847572801,76.38,13.314,13.302,111.3311]
[1672847573340,13.66721153,13.313,13.302,111.3311]
[1672847573557,56.39,13.312,13.302,111.3311]
[1672847573776,56.39,13.312,13.3,49.671]
[1672847573975,13.66721153,13.311,13.3,49.671]
[1672847574186,13.66721153,13.311,13.295,167.6093]
[1672847574396,13.66721153,13.311,13.296,20.0]
[1672847576184,13.66721153,13.311,13.295,111.1493]
[1672847576396,76.4,13.31,13.295,111.1493]
[1672847576607,163.6094,13.309,13.295,111.1493]
[1672847576804,20.0,13.308,13.295,111.1493]
[1672847577019,33.59185541,13.308,13.295,111.1493]
[1672847577239,13.59185541,13.307,13.295,111.1493]
[1672847577456,20.0,13.306,13.295,111.1493]
[1672847577872,13.59185541,13.305,13.295,111.1493]
[1672847578075,20.0,13.304,13.291,56.48]
[1672847578701,33.59185541,13.304,13.291,56.48]
[1672847578924,33.59185541,13.304,13.291,55.98]
[1672847579648,20.0,13.304,13.291,55.98]
[1672847579854,33.59185541,13.304,13.291,55.98]
[1672847581225,20.0,13.304,13.291,55.98]
[1672847583254,56.34,13.324,13.292,20.0]
[1672847583457,20.0,13.323,13.294,224.7]
[1672847583657,56.35,13.322,13.295,256.8707]
[1672847583871,20.0,13.321,13.295,256.8707]
[1672847584084,127.9246,13.32,13.295,256.8707]
[1672847584313,20.0,13.319,13.295,256.8707]
[1672847584511,166.2443,13.318,13.295,256.8707]
[1672847584739,20.0,13.317,13.295,256.8707]
[1672847584943,22.7089,13.316,13.295,256.8707]
[1672847585157,20.0,13.315,13.295,256.8707]
[1672847585347,57.85681138,13.315,13.295,481.5707]
[1672847585557,57.85681138,13.315,13.295,503.3518836]
[1672847585789,44.3403,13.315,13.295,503.3518836]
[1672847586521,44.3403,13.315,13.295,481.5707]
[1672847586932,57.85681138,13.315,13.295,256.8707]
[1672847587878,57.85681138,13.315,13.295,481.5707]
[1672847588310,44.3403,13.315,13.295,481.5707]
[1672847588529,44.3403,13.315,13.296,38.7811836]
[1672847588727,44.3403,13.315,13.297,281.15]
[1672847588935,44.3403,13.315,13.298,22.9101]
[1672847589123,24.3403,13.315,13.3,224.7]
[1672847589337,109.8843,13.318,13.301,301.14]
[1672847589881,13.51651138,13.322,13.301,301.14]
[1672847590212,13.51651138,13.322,13.302,165.1968]
[1672847590524,13.51651138,13.322,13.303,76.43]
[1672847590929,13.51651138,13.322,13.303,56.43]
[1672847591131,20.0,13.321,13.303,56.43]
[1672847591338,44.6689,13.321,13.303,56.43]
[1672847591547,13.51651138,13.32,13.303,56.43]
[1672847591876,161.4833,13.319,13.303,56.43]
[1672847592314,24.6689,13.318,13.303,56.43]
[1672847592496,20.0,13.317,13.303,56.43]
[1672847595424,56.34,13.323,13.304,224.7]
[1672847595642,23.8107,13.324,13.305,301.12]
[1672847595849,23.8107,13.324,13.306,22.6356]
[1672847596096,23.8107,13.324,13.307,56.41]
[1672847596278,23.8107,13.324,13.307,101.0723]
[1672847596600,37.32721138,13.324,13.307,101.0723]
[1672847597854,37.32721138,13.324,13.307,325.7723]
[1672847598047,23.8107,13.324,13.307,347.5534836]
[1672847599120,56.28,13.338,13.308,17.0]
[1672847599302,20.0,13.337,13.309,301.1]
[1672847599733,13.51651138,13.336,13.309,301.1]
[1672847599946,20.0,13.335,13.311,224.7]
[1672847600147,20.0,13.335,13.312,301.09]
[1672847600363,13.51651138,13.334,13.312,301.09]
[1672847600686,13.51651138,13.334,13.313,23.8355]
[1672847600899,13.51651138,13.334,13.314,56.38]
[1672847601095,13.51651138,13.334,13.315,20.0]
[1672847601306,13.51651138,13.334,13.316,56.37]
[1672847601744,13.51651138,13.334,13.317,20.0]
[1672847602060,13.51651138,13.334,13.318,56.36]
[1672847611624,20.0,13.335,13.318,56.36]
[1672847611836,13.51651138,13.336,13.318,56.36]
[1672847612050,13.51651138,13.334,13.318,80.0021]
[1672847614682,13.51651138,13.334,13.318,23.6421]
[1672847615522,13.51651138,13.334,13.317,56.37]
[1672847615849,101.0532,13.333,13.308,160.0937]
[1672847616032,101.0532,13.333,13.309,56.4]
[1672847616362,13.44127616,13.332,13.309,56.4]
[1672847616576,76.31,13.331,13.309,56.4]
[1672847616975,13.44127616,13.33,13.309,56.4]
[1672847617185,20.0,13.329,13.309,56.4]
[1672847617415,44.9278,13.329,13.309,56.4]
[1672847617627,13.44127616,13.328,13.309,56.4]
[1672847617854,44.0279,13.327,13.309,56.4]
[1672847618380,13.44127616,13.326,13.309,56.4]
[1672847618589,20.0,13.325,13.309,56.4]
[1672847618992,13.44127616,13.324,13.309,56.4]
[1672847620064,20.0,13.325,13.309,56.4]
[1672847623538,13.44127616,13.324,13.309,56.4]
[1672847623933,13.44127616,13.324,13.308,216.5037]
[1672847624145,20.0,13.325,13.308,216.5037]
[1672847624463,13.44127616,13.324,13.308,216.5037]
[1672847625531,20.0,13.325,13.308,441.2037]
[1672847626263,20.0,13.325,13.308,462.9848836]
[1672847627410,20.0,13.325,13.308,441.2037]
[1672847627819,135.3284,13.326,13.308,462.9848836]
[1672847628160,56.25,13.344,13.309,37.0]
[1672847628356,187.0932,13.343,13.312,224.7]
[1672847628565,56.26,13.342,13.314,224.7]
[1672847628778,56.26,13.342,13.316,224.7]
[1672847629095,56.26,13.342,13.317,325.6362]
[1672847629312,20.0,13.341,13.317,325.6362]
[1672847629516,56.27,13.34,13.318,23.4103]
[1672847629710,20.0,13.339,13.319,56.36]
[1672847629922,56.28,13.338,13.319,56.36]
[1672847630132,20.0,13.337,13.319,56.36]
[1672847630356,114.4221,13.336,13.319,56.36]
[1672847630571,20.0,13.335,13.319,56.36]
[1672847630771,42.798,13.335,13.319,56.36]
[1672847630985,13.44127616,13.334,13.319,56.36]
[1672847632564,42.798,13.335,13.319,281.06]
[1672847634366,13.44127616,13.334,13.319,281.06]
[1672847635200,76.3,13.333,13.318,23.4103]
[1672847635617,13.44127616,13.332,13.318,23.4103]
[1672847635817,22.798,13.335,13.32,224.7]
[1672847636447,22.798,13.335,13.323,56.34]
[1672847637300,22.798,13.335,13.322,56.35]
[1672847637723,22.798,13.335,13.321,56.35]
[1672847638248,22.798,13.335,13.322,224.7]
[1672847638458,22.798,13.335,13.323,56.34]
[1672847639909,22.798,13.335,13.323,78.1211836]
[1672847640133,22.798,13.335,13.323,302.8211836]
[1672847640777,56.24,13.348,13.323,302.8211836]
[1672847640972,164.6914,13.343,13.325,224.7]
[1672847641178,164.6914,13.343,13.326,301.03]
[1672847641387,164.6914,13.343,13.326,302.8111836]
[1672847641598,164.6914,13.343,13.327,20.0]
[1672847641804,164.6914,13.343,13.328,56.32]
[1672847642224,164.6914,13.343,13.328,78.1011836]
[1672847642443,164.6914,13.343,13.328,56.32]
[1672847644319,89.70127616,13.342,13.327,22.6446]
[1672847644759,13.44127616,13.341,13.327,22.6446]
[1672847644971,76.27,13.34,13.319,281.06]
[1672847645167,20.0,13.339,13.322,56.35]
[1672847645817,23.4396,13.338,13.322,56.35]
[1672847646133,20.0,13.337,13.322,56.35]
[1672847646351,159.2682,13.337,13.322,56.35]
[1672847647279,159.2682,13.337,13.322,78.1311836]
[1672847647489,159.2682,13.337,13.322,302.8311836]
[1672847650016,159.2682,13.337,13.322,78.1311836]
[1672847650339,159.2682,13.337,13.322,56.35]
[1672847650553,159.2682,13.337,13.321,44.4966836]
[1672847651483,159.2682,13.337,13.322,281.05]
[1672847652011,159.2682,13.337,13.322,302.8311836]
[1672847657890,22.9998,13.342,13.323,17.0]
[1672847658102,22.9998,13.342,13.324,301.04]
[1672847658312,22.9998,13.342,13.326,224.7]
[1672847658533,22.9998,13.342,13.328,224.7]
[1672847658735,22.9998,13.342,13.329,281.02]
[1672847660123,22.9998,13.342,13.33,21.7811836]
[1672847660532,22.9998,13.342,13.332,224.7]
[1672847660945,22.9998,13.342,13.334,224.7]
[1672847661154,46.7947,13.343,13.334,224.7]
[1672847661359,56.2,13.358,13.335,21.7811836]
[1672847661571,179.6038,13.357,13.336,56.29]
[1672847661784,179.6038,13.357,13.333,224.7]
[1672847661785,13.44127616,13.346,13.333,224.7]
[1672847662107,13.44127616,13.355,13.333,224.7]
[1672847662298,56.21,13.354,13.333,224.7]
[1672847662513,23.6459,13.353,13.333,224.7]
[1672847662726,56.22,13.352,13.332,224.7]
[1672847662959,20.0,13.351,13.333,56.3]
[1672847663145,33.44127616,13.351,13.333,281.0]
[1672847663355,33.44127616,13.351,13.333,224.7]
[1672847663566,136.6745,13.35,13.333,224.7]
[1672847663990,20.0,13.349,13.333,224.7]